[Event "Champions Chess Tour Finals 2024"]
[Date "2024.12.18"]
[White "Lazavik, Denis"]
[Black "Aronian, Levon"]
[WhiteElo "2553"]
[BlackElo "2818"]
[Round "4.3"]
[Result "0-1"]
[TimeControl "600+2"]

1. Nf3 {[%clk 0:09:58]} Nf6 {[%clk 0:06:44]} 2. b3 {[%clk 0:09:57]} c5 {[%clk
0:06:38]} 3. Bb2 {[%clk 0:09:56]} Nc6 {[%clk 0:06:37]} 4. e3 {[%clk 0:09:53]} g6
{[%clk 0:06:33]} 5. Bb5 {[%clk 0:09:48]} Bg7 {[%clk 0:06:31]} 6. O-O {[%clk
0:09:46]} O-O {[%clk 0:06:30]} 7. Re1 {[%clk 0:09:45]} d6 {[%clk 0:06:18]} 8. d4
{[%clk 0:09:42]} cxd4 {[%clk 0:06:15]} 9. exd4 {[%clk 0:09:41]} Bg4 {[%clk
0:06:13]} 10. Nbd2 {[%clk 0:09:36]} Rc8 {[%clk 0:06:10]} 11. h3 {[%clk 0:09:32]}
Bf5 {[%clk 0:06:08]} 12. a3 {[%clk 0:09:23]} a6 {[%clk 0:06:06]} 13. Bf1 {[%clk
0:09:18]} d5 {[%clk 0:06:03]} 14. c3 {[%clk 0:09:12]} Ne4 {[%clk 0:05:58]} 15.
Nh4 {[%clk 0:08:26]} e6 {[%clk 0:05:56]} 16. Nxf5 {[%clk 0:08:23]} exf5 {[%clk
0:05:55]} 17. Nf3 {[%clk 0:08:21]} Qb6 {[%clk 0:05:47]} 18. b4 {[%clk 0:08:15]}
Na5 {[%clk 0:05:40]} 19. Rc1 {[%clk 0:07:28]} Nc4 {[%clk 0:05:38]} 20. Bxc4
{[%clk 0:07:26]} Rxc4 {[%clk 0:05:36]} 21. Nd2 {[%clk 0:07:25]} Rc6 {[%clk
0:05:23]} 22. Nb3 {[%clk 0:07:09]} Qc7 {[%clk 0:04:57]} 23. Nc5 {[%clk 0:07:06]}
a5 {[%clk 0:04:51]} 24. b5 {[%clk 0:06:04]} Rd6 {[%clk 0:04:48]} 25. a4 {[%clk
0:05:49]} Rc8 {[%clk 0:04:43]} 26. Nd3 {[%clk 0:05:40]} Rdd8 {[%clk 0:04:32]}
27. f3 {[%clk 0:05:36]} Nd6 {[%clk 0:04:27]} 28. Ra1 {[%clk 0:04:53]} Bh6 {[%clk
0:04:05]} 29. Bc1 {[%clk 0:04:50]} Bxc1 {[%clk 0:04:04]} 30. Rxc1 {[%clk
0:04:49]} Nc4 {[%clk 0:04:02]} 31. Qe2 {[%clk 0:04:44]} Qd6 {[%clk 0:03:45]} 32.
Nc5 {[%clk 0:04:23]} Rc7 {[%clk 0:03:37]} 33. Qf2 {[%clk 0:04:19]} b6 {[%clk
0:03:05]} 34. Nd3 {[%clk 0:04:18]} Re7 {[%clk 0:03:04]} 35. Rxe7 {[%clk
0:04:12]} Qxe7 {[%clk 0:03:03]} 36. Re1 {[%clk 0:04:11]} Qg5 {[%clk 0:03:02]}
37. h4 {[%clk 0:04:05]} Qf6 {[%clk 0:02:58]} 38. Nf4 {[%clk 0:03:46]} Qd6 {[%clk
0:02:30]} 39. g3 {[%clk 0:03:43]} Qa3 {[%clk 0:02:11]} 40. Qc2 {[%clk 0:03:42]}
Kf8 {[%clk 0:02:07]} 41. Kf2 {[%clk 0:03:33]} Qb2 {[%clk 0:02:02]} 42. Qe2
{[%clk 0:02:55]} Rd6 {[%clk 0:01:45]} 43. h5 {[%clk 0:02:33]} g5 {[%clk
0:01:29]} 44. Nd3 {[%clk 0:02:33]} Qxe2+ {[%clk 0:01:23]} 45. Rxe2 {[%clk
0:02:32]} Re6 {[%clk 0:01:09]} 46. Ne5 {[%clk 0:02:10]} Nxe5 {[%clk 0:01:02]}
47. dxe5 {[%clk 0:02:09]} f4 {[%clk 0:01:01]} 48. gxf4 {[%clk 0:01:50]} gxf4
{[%clk 0:01:00]} 49. c4 {[%clk 0:01:45]} dxc4 {[%clk 0:00:54]} 50. Re4 {[%clk
0:01:45]} c3 {[%clk 0:00:54]} 51. Ke2 {[%clk 0:01:44]} f5 {[%clk 0:00:53]} 52.
Rxf4 {[%clk 0:01:30]} Rxe5+ {[%clk 0:00:52]} 53. Kd3 {[%clk 0:01:29]} Rc5 {[%clk
0:00:52]} 54. Kc2 {[%clk 0:01:28]} Ke7 {[%clk 0:00:46]} 55. Rd4 {[%clk 0:01:25]}
Re5 {[%clk 0:00:43]} 56. Kxc3 {[%clk 0:01:19]} Re3+ {[%clk 0:00:39]} 57. Kc4
{[%clk 0:01:08]} Rxf3 {[%clk 0:00:34]} 58. Kd5 {[%clk 0:01:07]} Rc3 {[%clk
0:00:33]} 59. Ke5 {[%clk 0:01:02]} Rc5+ {[%clk 0:00:32]} 60. Kf4 {[%clk
0:01:02]} h6 {[%clk 0:00:31]} 61. Rd2 {[%clk 0:00:55]} Ke6 {[%clk 0:00:31]} 62.
Rg2 {[%clk 0:00:50]} Rc4+ {[%clk 0:00:29]} 63. Ke3 {[%clk 0:00:50]} Rg4 {[%clk
0:00:23]} 64. Rc2 {[%clk 0:00:50]} Rxa4 {[%clk 0:00:23]} 65. Rc6+ {[%clk
0:00:50]} Ke5 {[%clk 0:00:23]} 66. Rxh6 {[%clk 0:00:48]} Rh4 {[%clk 0:00:22]}
67. Rh8 {[%clk 0:00:37]} a4 {[%clk 0:00:20]} 68. h6 {[%clk 0:00:37]} Kf6 {[%clk
0:00:20]} 69. Rb8 {[%clk 0:00:36]} a3 {[%clk 0:00:15]} 70. Rxb6+ {[%clk
0:00:36]} Ke5 {[%clk 0:00:14]} 71. Ra6 {[%clk 0:00:32]} a2 {[%clk 0:00:14]} 72.
b6 {[%clk 0:00:25]} Rh3+ {[%clk 0:00:06]} 73. Kd2 {[%clk 0:00:18]} Kd6 {[%clk
0:00:07]} 74. Rxa2 {[%clk 0:00:05]} Rh2+ {[%clk 0:00:07]} 75. Kc3 {[%clk
0:00:04]} Rxa2 {[%clk 0:00:07]} 0-1

[Variant "Standard"]
[Site "Europe Echecs"]

[Event "Champions Chess Tour Finals 2024"]
[Date "2024.12.18"]
[White "Nepomniachtchi, Ian"]
[Black "Lazavik, Denis"]
[WhiteElo "2758"]
[BlackElo "2553"]
[Round "5.1"]
[Result "1-0"]
[TimeControl "600+2"]

1. e4 {[%clk 0:10:01]} e5 {[%clk 0:10:02]} 2. Nf3 {[%clk 0:10:02]} Nc6 {[%clk
0:10:02]} 3. Bc4 {[%clk 0:10:03]} Nf6 {[%clk 0:10:02]} 4. d3 {[%clk 0:10:05]}
Be7 {[%clk 0:10:02]} 5. O-O {[%clk 0:10:05]} O-O {[%clk 0:10:02]} 6. a4 {[%clk
0:10:05]} d5 {[%clk 0:09:57]} 7. exd5 {[%clk 0:10:04]} Nxd5 {[%clk 0:09:57]} 8.
h3 {[%clk 0:09:51]} Kh8 {[%clk 0:08:31]} 9. Re1 {[%clk 0:08:47]} f6 {[%clk
0:06:53]} 10. a5 {[%clk 0:08:47]} Bf5 {[%clk 0:06:53]} 11. Nbd2 {[%clk 0:08:17]}
a6 {[%clk 0:06:32]} 12. Nb3 {[%clk 0:08:17]} b5 {[%clk 0:05:11]} 13. axb6 {[%clk
0:06:45]} Nxb6 {[%clk 0:05:11]} 14. Nfd2 {[%clk 0:06:39]} Nxc4 {[%clk 0:05:05]}
15. Nxc4 {[%clk 0:06:46]} Be6 {[%clk 0:05:01]} 16. Be3 {[%clk 0:06:23]} Qd5
{[%clk 0:04:48]} 17. Nbd2 {[%clk 0:06:23]} f5 {[%clk 0:04:22]} 18. f3 {[%clk
0:06:23]} Bh4 {[%clk 0:04:01]} 19. Rf1 {[%clk 0:06:24]} a5 {[%clk 0:03:41]} 20.
Bf2 {[%clk 0:06:25]} Bf6 {[%clk 0:03:35]} 21. Re1 {[%clk 0:05:42]} a4 {[%clk
0:03:20]} 22. Nb1 {[%clk 0:05:42]} Qd7 {[%clk 0:03:00]} 23. Nc3 {[%clk 0:05:41]}
e4 {[%clk 0:02:33]} 24. Nxa4 {[%clk 0:05:29]} Bxc4 {[%clk 0:02:33]} 25. dxc4
{[%clk 0:05:12]} Qxd1 {[%clk 0:02:34]} 26. Rexd1 {[%clk 0:05:13]} exf3 {[%clk
0:02:35]} 27. c3 {[%clk 0:04:03]} fxg2 {[%clk 0:02:18]} 28. Nc5 {[%clk 0:04:04]}
Rxa1 {[%clk 0:01:57]} 29. Rxa1 {[%clk 0:04:06]} Ne5 {[%clk 0:01:58]} 30. Ne6
{[%clk 0:03:55]} Rc8 {[%clk 0:01:54]} 31. c5 {[%clk 0:03:38]} Kg8 {[%clk
0:01:39]} 32. Ra7 {[%clk 0:03:32]} c6 {[%clk 0:01:14]} 33. Kxg2 {[%clk 0:03:32]}
Re8 {[%clk 0:01:10]} 34. Nd4 {[%clk 0:03:25]} Nd3 {[%clk 0:01:09]} 35. b4 {[%clk
0:03:19]} Re4 {[%clk 0:00:42]} 36. b5 {[%clk 0:03:14]} cxb5 {[%clk 0:00:33]} 37.
c6 {[%clk 0:03:15]} Re8 {[%clk 0:00:24]} 38. Nxb5 {[%clk 0:02:39]} Nxf2 {[%clk
0:00:12]} 39. Kxf2 {[%clk 0:02:17]} Be5 {[%clk 0:00:13]} 40. Rd7 {[%clk
0:02:11]} h5 {[%clk 0:00:05]} 41. c4 {[%clk 0:02:06]} g5 {[%clk 0:00:04]} 42. c7
{[%clk 0:02:01]} Bxc7 {[%clk 0:00:03]} 43. Nxc7 {[%clk 0:02:02]} Re4 {[%clk
0:00:04]} 44. c5 {[%clk 0:02:00]} Rc4 {[%clk 0:00:05]} 45. Ne6 {[%clk 0:01:59]}
g4 {[%clk 0:00:06]} 46. hxg4 {[%clk 0:01:57]} hxg4 {[%clk 0:00:07]} 47. Kg3
{[%clk 0:01:53]} Rc3+ {[%clk 0:00:05]} 48. Kf4 {[%clk 0:01:54]} Rf3+ {[%clk
0:00:06]} 49. Ke5 {[%clk 0:01:56]} g3 {[%clk 0:00:05]} 50. Kf6 {[%clk 0:01:53]}
g2 {[%clk 0:00:03]} 51. Rd8+ {[%clk 0:01:54]} 1-0

[Variant "Standard"]
[Site "Europe Echecs"]

[Event "Champions Chess Tour Finals 2024"]
[Date "2024.12.18"]
[White "Firouzja, Alireza"]
[Black "Carlsen, Magnus"]
[WhiteElo "2756"]
[BlackElo "2838"]
[Round "5.1"]
[Result "1/2-1/2"]
[TimeControl "600+2"]

1. e4 {[%clk 0:10:03]} e5 {[%clk 0:10:00]} 2. Nf3 {[%clk 0:10:03]} Nc6 {[%clk
0:10:01]} 3. Bc4 {[%clk 0:10:04]} Nf6 {[%clk 0:10:00]} 4. d3 {[%clk 0:10:05]}
Be7 {[%clk 0:10:01]} 5. O-O {[%clk 0:10:02]} O-O {[%clk 0:10:00]} 6. Nc3 {[%clk
0:10:03]} d6 {[%clk 0:09:58]} 7. a4 {[%clk 0:10:03]} a5 {[%clk 0:09:44]} 8. Re1
{[%clk 0:10:02]} h6 {[%clk 0:09:36]} 9. h3 {[%clk 0:10:02]} Re8 {[%clk 0:09:27]}
10. Ne2 {[%clk 0:10:00]} Bf8 {[%clk 0:09:24]} 11. Ng3 {[%clk 0:09:55]} Be6
{[%clk 0:09:24]} 12. Bb5 {[%clk 0:09:54]} Bd7 {[%clk 0:09:24]} 13. c3 {[%clk
0:09:48]} Ne7 {[%clk 0:08:58]} 14. d4 {[%clk 0:09:48]} Bxb5 {[%clk 0:08:36]} 15.
axb5 {[%clk 0:09:49]} exd4 {[%clk 0:08:33]} 16. Nxd4 {[%clk 0:09:24]} Ng6 {[%clk
0:08:25]} 17. c4 {[%clk 0:09:08]} c6 {[%clk 0:06:59]} 18. bxc6 {[%clk 0:06:40]}
bxc6 {[%clk 0:07:00]} 19. Nxc6 {[%clk 0:06:39]} Qc7 {[%clk 0:07:01]} 20. Qa4
{[%clk 0:06:37]} d5 {[%clk 0:06:35]} 21. cxd5 {[%clk 0:06:29]} Nxd5 {[%clk
0:06:35]} 22. Bd2 {[%clk 0:06:12]} Ndf4 {[%clk 0:06:35]} 23. Qb5 {[%clk
0:05:11]} Nxg2 {[%clk 0:04:39]} 24. Kxg2 {[%clk 0:05:09]} Qd7 {[%clk 0:04:20]}
25. Be3 {[%clk 0:04:13]} Nh4+ {[%clk 0:04:18]} 26. Kf1 {[%clk 0:04:14]} Rab8
{[%clk 0:04:00]} 27. Qd5 {[%clk 0:02:54]} Qxh3+ {[%clk 0:04:00]} 28. Ke2 {[%clk
0:02:56]} Rxb2+ {[%clk 0:04:00]} 29. Kd3 {[%clk 0:02:55]} Ng2 {[%clk 0:02:58]}
30. Re2 {[%clk 0:02:07]} Rb7 {[%clk 0:01:31]} 31. Qf5 {[%clk 0:01:23]} Qh4
{[%clk 0:00:46]} 32. Rh1 {[%clk 0:01:20]} Nxe3 {[%clk 0:00:30]} 33. Rxe3 {[%clk
0:01:13]} Qg5 {[%clk 0:00:30]} 34. Qxg5 {[%clk 0:01:10]} hxg5 {[%clk 0:00:30]}
35. Nxa5 {[%clk 0:01:04]} Rd8+ {[%clk 0:00:26]} 36. Ke2 {[%clk 0:01:00]} Rb2+
{[%clk 0:00:25]} 37. Kf3 {[%clk 0:01:01]} Bc5 {[%clk 0:00:26]} 38. Nc4 {[%clk
0:00:09]} Rc2 {[%clk 0:00:26]} 39. Ne5 {[%clk 0:00:11]} Bxe3 {[%clk 0:00:22]}
40. fxe3 {[%clk 0:00:11]} f6 {[%clk 0:00:21]} 41. Ng4 {[%clk 0:00:11]} Kf7
{[%clk 0:00:19]} 42. e5 {[%clk 0:00:11]} Ke6 {[%clk 0:00:15]} 43. exf6 {[%clk
0:00:10]} gxf6 {[%clk 0:00:16]} 44. Rh6 {[%clk 0:00:11]} Rf8 {[%clk 0:00:16]}
45. Ne4 {[%clk 0:00:12]} Ke7 {[%clk 0:00:12]} 46. Rxf6 {[%clk 0:00:04]} Rxf6+
{[%clk 0:00:12]} 47. Nexf6 {[%clk 0:00:04]} Ke6 {[%clk 0:00:08]} 48. Ne4 {[%clk
0:00:05]} Ra2 {[%clk 0:00:06]} 49. Ngf2 {[%clk 0:00:05]} g4+ {[%clk 0:00:04]}
50. Kxg4 {[%clk 0:00:04]} Ra3 {[%clk 0:00:05]} 51. Nd3 {[%clk 0:00:05]} Rxd3
{[%clk 0:00:05]} 52. Nc5+ {[%clk 0:00:06]} Ke5 {[%clk 0:00:06]} 53. Nxd3+ {[%clk
0:00:06]} Ke4 {[%clk 0:00:08]} 54. Nf2+ {[%clk 0:00:07]} Kxe3 {[%clk 0:00:09]}
1/2-1/2

[Variant "Standard"]
[Site "Europe Echecs"]

[Event "Champions Chess Tour Finals 2024"]
[Date "2024.12.18"]
[White "Vachier-Lagrave, Maxime"]
[Black "Keymer, Vincent"]
[WhiteElo "2763"]
[BlackElo "2649"]
[Round "5.1"]
[Result "1-0"]
[TimeControl "600+2"]

1. e4 {[%clk 0:10:03]} e5 {[%clk 0:10:03]} 2. Nf3 {[%clk 0:10:04]} Nc6 {[%clk
0:10:04]} 3. Nc3 {[%clk 0:10:05]} Nf6 {[%clk 0:10:01]} 4. Bb5 {[%clk 0:10:06]}
Bb4 {[%clk 0:09:59]} 5. O-O {[%clk 0:10:03]} O-O {[%clk 0:09:56]} 6. d3 {[%clk
0:10:04]} Bxc3 {[%clk 0:09:54]} 7. bxc3 {[%clk 0:10:05]} d6 {[%clk 0:09:55]} 8.
Bg5 {[%clk 0:10:02]} h6 {[%clk 0:09:31]} 9. Bh4 {[%clk 0:10:03]} a6 {[%clk
0:08:57]} 10. Bxc6 {[%clk 0:08:57]} bxc6 {[%clk 0:08:58]} 11. Rb1 {[%clk
0:08:58]} c5 {[%clk 0:08:21]} 12. c4 {[%clk 0:08:53]} Bg4 {[%clk 0:08:02]} 13.
h3 {[%clk 0:08:53]} Bxf3 {[%clk 0:07:45]} 14. Qxf3 {[%clk 0:08:54]} g5 {[%clk
0:07:46]} 15. Bg3 {[%clk 0:08:54]} Kg7 {[%clk 0:07:19]} 16. Rb3 {[%clk 0:08:42]}
Qd7 {[%clk 0:06:39]} 17. Rfb1 {[%clk 0:08:42]} Ng8 {[%clk 0:06:40]} 18. c3
{[%clk 0:07:35]} Ne7 {[%clk 0:06:38]} 19. d4 {[%clk 0:07:21]} cxd4 {[%clk
0:05:40]} 20. cxd4 {[%clk 0:07:22]} exd4 {[%clk 0:05:06]} 21. e5 {[%clk
0:07:17]} dxe5 {[%clk 0:04:11]} 22. Bxe5+ {[%clk 0:07:18]} f6 {[%clk 0:04:12]}
23. Bxf6+ {[%clk 0:04:56]} Kg6 {[%clk 0:04:13]} 24. Qe4+ {[%clk 0:04:57]} Qf5
{[%clk 0:02:51]} 25. Qxe7 {[%clk 0:04:43]} Rxf6 {[%clk 0:02:48]} 26. Rf1 {[%clk
0:04:17]} d3 {[%clk 0:02:20]} 27. Qxc7 {[%clk 0:04:01]} Re8 {[%clk 0:01:29]} 28.
Rb7 {[%clk 0:03:33]} Rf7 {[%clk 0:01:09]} 29. Qc6+ {[%clk 0:03:34]} Re6 {[%clk
0:01:07]} 30. Qc8 {[%clk 0:03:08]} Rxb7 {[%clk 0:01:03]} 31. Qxb7 {[%clk
0:03:09]} Rd6 {[%clk 0:00:46]} 32. Qb8 {[%clk 0:02:56]} Qe6 {[%clk 0:00:38]} 33.
c5 {[%clk 0:02:53]} Rd7 {[%clk 0:00:39]} 34. Rd1 {[%clk 0:02:32]} d2 {[%clk
0:00:39]} 35. Qb6 {[%clk 0:02:14]} Kf7 {[%clk 0:00:23]} 36. Qxe6+ {[%clk
0:02:14]} Kxe6 {[%clk 0:00:24]} 37. Kf1 {[%clk 0:02:12]} Rd5 {[%clk 0:00:23]}
38. Ke2 {[%clk 0:02:13]} Rxc5 {[%clk 0:00:19]} 39. Rxd2 {[%clk 0:02:14]} Ra5
{[%clk 0:00:21]} 40. Kd3 {[%clk 0:02:09]} h5 {[%clk 0:00:20]} 41. Kc4 {[%clk
0:02:01]} g4 {[%clk 0:00:15]} 42. hxg4 {[%clk 0:01:53]} hxg4 {[%clk 0:00:16]}
43. Re2+ {[%clk 0:01:44]} Kf6 {[%clk 0:00:16]} 44. g3 {[%clk 0:01:34]} Rf5
{[%clk 0:00:07]} 45. a4 {[%clk 0:01:28]} Kf7 {[%clk 0:00:06]} 46. Re4 {[%clk
0:01:15]} Rxf2 {[%clk 0:00:07]} 47. Rxg4 {[%clk 0:01:17]} Rc2+ {[%clk 0:00:04]}
48. Kb4 {[%clk 0:01:15]} Rc6 {[%clk 0:00:05]} 49. Ka5 {[%clk 0:01:12]} Ke7
{[%clk 0:00:04]} 50. Rg7+ {[%clk 0:01:09]} Kf6 {[%clk 0:00:03]} 51. Rb7 {[%clk
0:01:08]} Rc3 {[%clk 0:00:03]} 52. g4 {[%clk 0:01:00]} Rg3 {[%clk 0:00:03]} 53.
Rb4 {[%clk 0:01:00]} Ke6 {[%clk 0:00:03]} 54. Kxa6 {[%clk 0:01:01]} Kf7 {[%clk
0:00:03]} 55. a5 {[%clk 0:01:02]} Kg7 {[%clk 0:00:04]} 56. Kb7 {[%clk 0:01:03]}
Re3 {[%clk 0:00:05]} 57. a6 {[%clk 0:01:03]} Re7+ {[%clk 0:00:06]} 58. Kb6
{[%clk 0:01:04]} Re6+ {[%clk 0:00:07]} 59. Ka5 {[%clk 0:01:05]} Re5+ {[%clk
0:00:06]} 60. Rb5 {[%clk 0:01:06]} Re1 {[%clk 0:00:06]} 61. a7 {[%clk 0:01:06]}
1-0

[Variant "Standard"]
[Site "Europe Echecs"]

[Event "Champions Chess Tour Finals 2024"]
[Date "2024.12.18"]
[White "Lazavik, Denis"]
[Black "Nepomniachtchi, Ian"]
[WhiteElo "2553"]
[BlackElo "2758"]
[Round "5.2"]
[Result "1-0"]
[TimeControl "600+2"]

1. Nf3 {[%clk 0:10:02]} d5 {[%clk 0:10:03]} 2. b3 {[%clk 0:10:02]} Nf6 {[%clk
0:09:49]} 3. Bb2 {[%clk 0:10:02]} e6 {[%clk 0:09:38]} 4. e3 {[%clk 0:10:02]} Be7
{[%clk 0:09:38]} 5. g4 {[%clk 0:09:56]} O-O {[%clk 0:08:31]} 6. g5 {[%clk
0:09:56]} Ne4 {[%clk 0:08:22]} 7. h4 {[%clk 0:09:57]} c5 {[%clk 0:08:23]} 8. Nc3
{[%clk 0:09:56]} Nxc3 {[%clk 0:07:41]} 9. dxc3 {[%clk 0:09:56]} Nc6 {[%clk
0:07:37]} 10. c4 {[%clk 0:09:46]} Qa5+ {[%clk 0:07:09]} 11. Qd2 {[%clk 0:08:45]}
Qxd2+ {[%clk 0:07:06]} 12. Nxd2 {[%clk 0:08:45]} d4 {[%clk 0:06:51]} 13. exd4
{[%clk 0:08:08]} cxd4 {[%clk 0:06:52]} 14. O-O-O {[%clk 0:08:00]} e5 {[%clk
0:06:53]} 15. Bg2 {[%clk 0:07:58]} f6 {[%clk 0:06:19]} 16. gxf6 {[%clk 0:07:43]}
Rxf6 {[%clk 0:06:02]} 17. Bd5+ {[%clk 0:07:17]} Kh8 {[%clk 0:06:02]} 18. Rde1
{[%clk 0:06:37]} Bd7 {[%clk 0:05:12]} 19. Ne4 {[%clk 0:05:37]} Rf4 {[%clk
0:05:13]} 20. Kb1 {[%clk 0:04:23]} Raf8 {[%clk 0:05:05]} 21. h5 {[%clk 0:04:14]}
h6 {[%clk 0:05:07]} 22. Bc1 {[%clk 0:04:05]} R4f5 {[%clk 0:04:46]} 23. a3 {[%clk
0:03:46]} Be8 {[%clk 0:04:40]} 24. b4 {[%clk 0:03:37]} Rxh5 {[%clk 0:04:23]} 25.
Rxh5 {[%clk 0:03:29]} Bxh5 {[%clk 0:04:25]} 26. b5 {[%clk 0:03:30]} Nd8 {[%clk
0:04:26]} 27. c5 {[%clk 0:02:37]} Bf7 {[%clk 0:04:19]} 28. Bxf7 {[%clk 0:02:21]}
Nxf7 {[%clk 0:04:13]} 29. Bd2 {[%clk 0:02:09]} Rc8 {[%clk 0:03:51]} 30. Bb4
{[%clk 0:02:10]} Kg8 {[%clk 0:03:44]} 31. Kb2 {[%clk 0:02:09]} a5 {[%clk
0:03:00]} 32. bxa6 {[%clk 0:01:15]} bxa6 {[%clk 0:03:01]} 33. Kb3 {[%clk
0:01:16]} Nd8 {[%clk 0:02:17]} 34. Kc4 {[%clk 0:01:16]} Nc6 {[%clk 0:01:18]} 35.
Kd5 {[%clk 0:01:14]} Kf7 {[%clk 0:01:13]} 36. Bd2 {[%clk 0:00:49]} Ke8 {[%clk
0:01:04]} 37. Rg1 {[%clk 0:00:50]} Bf8 {[%clk 0:01:05]} 38. Nd6+ {[%clk
0:00:45]} Bxd6 {[%clk 0:01:06]} 39. cxd6 {[%clk 0:00:45]} g5 {[%clk 0:00:47]}
40. Rh1 {[%clk 0:00:38]} Nd8 {[%clk 0:00:25]} 41. Rxh6 {[%clk 0:00:38]} Rxc2
{[%clk 0:00:26]} 42. Rh8+ {[%clk 0:00:33]} Kd7 {[%clk 0:00:28]} 43. Rh7+ {[%clk
0:00:34]} Kc8 {[%clk 0:00:29]} 44. Bxg5 {[%clk 0:00:30]} d3 {[%clk 0:00:24]} 45.
Rh8 {[%clk 0:00:24]} d2 {[%clk 0:00:25]} 46. Rxd8+ {[%clk 0:00:24]} Kb7 {[%clk
0:00:27]} 47. Bxd2 {[%clk 0:00:25]} Rxd2+ {[%clk 0:00:28]} 48. Ke6 {[%clk
0:00:26]} Rxf2 {[%clk 0:00:19]} 49. d7 {[%clk 0:00:27]} 1-0

[Variant "Standard"]
[Site "Europe Echecs"]

[Event "Champions Chess Tour Finals 2024"]
[Date "2024.12.18"]
[White "Aronian, Levon"]
[Black "So, Wesley"]
[WhiteElo "2818"]
[BlackElo "2826"]
[Round "5.2"]
[Result "1-0"]
[TimeControl "600+2"]

1. e4 {[%clk 0:10:03]} d6 {[%clk 0:09:58]} 2. d4 {[%clk 0:10:02]} Nf6 {[%clk
0:09:59]} 3. Nc3 {[%clk 0:10:03]} g6 {[%clk 0:10:00]} 4. Nf3 {[%clk 0:10:02]}
Bg7 {[%clk 0:10:00]} 5. Be2 {[%clk 0:10:03]} O-O {[%clk 0:09:57]} 6. O-O {[%clk
0:10:04]} c6 {[%clk 0:09:49]} 7. a4 {[%clk 0:10:02]} Qc7 {[%clk 0:09:34]} 8. Be3
{[%clk 0:09:38]} e5 {[%clk 0:09:26]} 9. dxe5 {[%clk 0:09:20]} dxe5 {[%clk
0:09:26]} 10. Bc4 {[%clk 0:09:19]} Nbd7 {[%clk 0:08:50]} 11. h3 {[%clk 0:08:53]}
a5 {[%clk 0:08:35]} 12. Qd2 {[%clk 0:08:35]} Re8 {[%clk 0:08:12]} 13. Rad1
{[%clk 0:08:25]} Bf8 {[%clk 0:07:09]} 14. Ng5 {[%clk 0:08:17]} Re7 {[%clk
0:07:10]} 15. f4 {[%clk 0:08:18]} exf4 {[%clk 0:05:27]} 16. Bxf4 {[%clk
0:08:16]} Ne5 {[%clk 0:05:18]} 17. Qf2 {[%clk 0:08:02]} Kg7 {[%clk 0:04:46]} 18.
Nxf7 {[%clk 0:07:42]} Rxf7 {[%clk 0:04:23]} 19. Bxf7 {[%clk 0:07:41]} Kxf7
{[%clk 0:04:24]} 20. Bg5 {[%clk 0:07:30]} 1-0

[Variant "Standard"]
[Site "Europe Echecs"]

[Event "Champions Chess Tour Finals 2024"]
[Date "2024.12.18"]
[White "Keymer, Vincent"]
[Black "Vachier-Lagrave, Maxime"]
[WhiteElo "2649"]
[BlackElo "2763"]
[Round "5.2"]
[Result "1/2-1/2"]
[TimeControl "600+2"]

1. c4 {[%clk 0:10:02]} Nf6 {[%clk 0:10:00]} 2. Nf3 {[%clk 0:10:03]} c5 {[%clk
0:10:01]} 3. b3 {[%clk 0:10:04]} g6 {[%clk 0:09:59]} 4. Bb2 {[%clk 0:10:04]} Bg7
{[%clk 0:09:59]} 5. g3 {[%clk 0:10:04]} b6 {[%clk 0:10:00]} 6. Bg2 {[%clk
0:10:03]} Bb7 {[%clk 0:10:01]} 7. O-O {[%clk 0:09:58]} O-O {[%clk 0:10:01]} 8.
d4 {[%clk 0:09:54]} cxd4 {[%clk 0:10:02]} 9. Qxd4 {[%clk 0:09:49]} d6 {[%clk
0:09:55]} 10. Rd1 {[%clk 0:09:35]} Nbd7 {[%clk 0:09:55]} 11. Nc3 {[%clk
0:09:08]} Ne4 {[%clk 0:09:23]} 12. Qe3 {[%clk 0:09:09]} Nxc3 {[%clk 0:08:31]}
13. Bxc3 {[%clk 0:09:09]} Bxc3 {[%clk 0:08:32]} 14. Qxc3 {[%clk 0:09:10]} Rc8
{[%clk 0:08:29]} 15. Qe3 {[%clk 0:09:11]} Rc5 {[%clk 0:08:19]} 16. Rd4 {[%clk
0:08:56]} Nf6 {[%clk 0:07:38]} 17. Rad1 {[%clk 0:08:03]} b5 {[%clk 0:07:12]} 18.
cxb5 {[%clk 0:07:42]} Rxb5 {[%clk 0:07:13]} 19. Ra4 {[%clk 0:07:41]} a5 {[%clk
0:06:48]} 20. Nd4 {[%clk 0:07:22]} Re5 {[%clk 0:06:48]} 21. Qd3 {[%clk 0:06:52]}
Bxg2 {[%clk 0:06:37]} 22. Kxg2 {[%clk 0:06:52]} Qa8+ {[%clk 0:06:11]} 23. Qf3
{[%clk 0:06:36]} Qxf3+ {[%clk 0:05:51]} 24. Nxf3 {[%clk 0:05:06]} Rc5 {[%clk
0:05:36]} 25. Ne1 {[%clk 0:04:42]} Rfc8 {[%clk 0:04:47]} 26. Rdd4 {[%clk
0:04:23]} d5 {[%clk 0:04:22]} 27. f3 {[%clk 0:03:49]} e5 {[%clk 0:04:02]} 28.
Rd2 {[%clk 0:03:49]} e4 {[%clk 0:04:03]} 29. Kf2 {[%clk 0:03:48]} Re8 {[%clk
0:03:20]} 30. Rc2 {[%clk 0:03:07]} Rec8 {[%clk 0:03:21]} 31. Rxc5 {[%clk
0:02:58]} Rxc5 {[%clk 0:03:22]} 32. Ke3 {[%clk 0:02:58]} g5 {[%clk 0:02:55]} 33.
Kd2 {[%clk 0:02:30]} Kf8 {[%clk 0:02:38]} 34. Ng2 {[%clk 0:02:05]} Ke7 {[%clk
0:02:31]} 35. Ne3 {[%clk 0:02:06]} h5 {[%clk 0:01:53]} 36. Nf5+ {[%clk 0:01:03]}
Kd7 {[%clk 0:01:54]} 37. Nd4 {[%clk 0:00:44]} Ne8 {[%clk 0:01:53]} 38. Nf5
{[%clk 0:00:25]} Nf6 {[%clk 0:01:28]} 39. h3 {[%clk 0:00:26]} g4 {[%clk
0:01:08]} 40. fxg4 {[%clk 0:00:13]} hxg4 {[%clk 0:01:09]} 41. h4 {[%clk
0:00:14]} Nh5 {[%clk 0:01:10]} 42. e3 {[%clk 0:00:08]} Kc7 {[%clk 0:00:41]} 43.
Rd4 {[%clk 0:00:04]} Kd7 {[%clk 0:00:42]} 44. Ra4 {[%clk 0:00:04]} Kc7 {[%clk
0:00:43]} 45. b4 {[%clk 0:00:03]} axb4 {[%clk 0:00:40]} 46. Ra7+ {[%clk
0:00:04]} Kd8 {[%clk 0:00:22]} 47. Rxf7 {[%clk 0:00:04]} Ra5 {[%clk 0:00:23]}
48. Rh7 {[%clk 0:00:03]} Rxa2+ {[%clk 0:00:24]} 49. Kc1 {[%clk 0:00:04]} Nf6
{[%clk 0:00:25]} 50. Rh6 {[%clk 0:00:06]} Nd7 {[%clk 0:00:24]} 51. h5 {[%clk
0:00:07]} Rh2 {[%clk 0:00:16]} 52. Rh8+ {[%clk 0:00:05]} Kc7 {[%clk 0:00:17]}
53. h6 {[%clk 0:00:06]} Nc5 {[%clk 0:00:14]} 54. Nd4 {[%clk 0:00:06]} b3 {[%clk
0:00:11]} 55. Kb1 {[%clk 0:00:08]} Rh1+ {[%clk 0:00:12]} 56. Kb2 {[%clk
0:00:08]} Rh2+ {[%clk 0:00:13]} 57. Kb1 {[%clk 0:00:06]} Rh1+ {[%clk 0:00:14]}
58. Kb2 {[%clk 0:00:06]} Rh2+ {[%clk 0:00:15]} 1/2-1/2

[Variant "Standard"]
[Site "Europe Echecs"]